fUSD/lending_fUSD_20241216
["ID","MTS","AMOUNT","RATE_DAILY","PERIOD"]
[345570038,1734358240865,-500.0,0.00021917,3]
[345570039,1734358240875,-500.0,0.00021917,3]
[345570040,1734358240884,-599.05,0.00021917,3]
[345570041,1734358240894,-500.0,0.00021917,3]
[345570042,1734358240903,-500.0,0.00021917,3]
[345570043,1734358240912,-155.99259904,0.00021917,3]
[345570044,1734358240921,-500.0,0.00021917,3]
[345570045,1734358240931,-500.0,0.00021917,3]
[345570046,1734358240940,-500.0,0.00021917,3]
[345570047,1734358240950,-500.0,0.00021917,3]
[345570048,1734358240963,-500.0,0.00021917,3]
[345570049,1734358240972,-500.0,0.00021917,3]
[345570050,1734358240983,-500.0,0.00021917,3]
[345570051,1734358240993,-500.0,0.00021917,3]
[345570052,1734358241002,-400.0,0.00021917,3]
[345570053,1734358241011,-500.0,0.00021917,3]
[345570054,1734358241020,-461.00850657,0.00021917,3]
[345570055,1734358241031,-500.0,0.00021917,3]
[345570056,1734358241040,-500.0,0.00021917,3]
[345570057,1734358241049,-500.0,0.00021917,3]
[345570058,1734358241060,-500.0,0.00021917,3]
[345570059,1734358241070,-500.0,0.00021917,3]
[345570060,1734358241079,-500.0,0.00021917,3]
[345570061,1734358241089,-500.0,0.00021917,3]
[345570062,1734358241099,-500.0,0.00021917,3]
[345570063,1734358241108,-182.23,0.00021917,3]
[345570064,1734358241116,-500.0,0.00021917,3]
[345570065,1734358241126,-500.0,0.00021917,3]
[345570066,1734358241135,-551.48,0.00021917,3]
[345570067,1734358241146,-152.712639,0.00021917,3]
[345570068,1734358241157,-500.0,0.00021917,3]
[345570069,1734358241167,-500.0,0.00021917,3]
[345570070,1734358241176,-500.0,0.00021917,3]
[345570071,1734358241187,-261.098793,0.00021917,3]
[345570072,1734358241196,-261.098793,0.00021917,3]
[345570073,1734358241206,-500.0,0.00021917,3]
[345570074,1734358241216,-464.910185,0.00021917,3]
[345570075,1734358241225,-500.0,0.00021917,3]
[345570076,1734358241236,-500.0,0.00021917,3]
[345570077,1734358241246,-464.910185,0.00021917,3]
[345570078,1734358241255,-500.0,0.00021917,3]
[345570079,1734358241265,-500.0,0.00021917,3]
[345570080,1734358241274,-338.51,0.00021917,3]
[345570081,1734358241283,-500.0,0.00021917,3]
[345570082,1734358241293,-500.0,0.00021917,3]
[345570083,1734358241302,-500.0,0.00021917,3]
[345570084,1734358241312,-500.0,0.00021917,3]
[345570085,1734358241321,-500.0,0.00021917,3]
[345570086,1734358241330,-523.97,0.00021917,3]
[345570087,1734358241340,-534.8,0.00021917,3]
[345570088,1734358241349,-760.28,0.00021917,3]
[345570089,1734358241359,-534.8,0.00021917,3]
[345570090,1734358241369,-500.0,0.00021917,3]
[345570091,1734358241379,-500.0,0.00021917,3]
[345570092,1734358241388,-500.0,0.00021917,3]
[345570093,1734358241398,-500.0,0.00021917,3]
[345570094,1734358241407,-500.0,0.00021917,3]
[345570095,1734358241417,-500.0,0.00021917,3]
[345570096,1734358241425,-500.0,0.00021917,3]
[345570097,1734358241435,-500.0,0.00021917,3]
[345570098,1734358241444,-500.0,0.00021917,3]
[345570099,1734358241453,-500.0,0.00021917,3]
[345570100,1734358241463,-500.0,0.00021917,3]
[345570101,1734358241473,-500.0,0.00021917,3]
[345570102,1734358241484,-500.0,0.00021917,3]
[345570103,1734358241493,-546.21,0.00021917,3]
[345570104,1734358241502,-500.0,0.00021917,3]
[345570105,1734358241516,-500.0,0.00021917,3]
[345570106,1734358241525,-502.22355364,0.00021917,3]
[345570107,1734358241534,-523.53717459,0.00021917,3]
[345570108,1734358241543,-500.0,0.00021917,3]
[345570109,1734358241555,-576.36,0.00021917,3]
[345570110,1734358241564,-500.0,0.00021917,3]
[345570111,1734358241574,-500.0,0.00021917,3]
[345570112,1734358241585,-596.38,0.00021917,3]
[345570113,1734358241594,-500.0,0.00021917,3]
[345570114,1734358241605,-500.0,0.00021917,3]
[345570115,1734358241614,-500.0,0.00021917,3]
[345570116,1734358241623,-500.0,0.00021917,3]
[345570117,1734358241632,-500.0,0.00021917,3]
[345570118,1734358241641,-500.0,0.00021917,3]
[345570119,1734358241651,-500.0,0.00021917,3]
[345570120,1734358241660,-500.0,0.00021917,3]
[345570121,1734358241669,-941.73,0.00021917,3]
[345570122,1734358241679,-500.0,0.00021917,3]
[345570123,1734358241688,-500.0,0.00021917,3]
[345570124,1734358241698,-500.0,0.00021917,3]
[345570125,1734358241835,-500.0,0.00021917,3]
[345570126,1734358241845,-500.0,0.00021917,3]
[345570127,1734358241855,-500.0,0.00021917,3]
[345570128,1734358241864,-500.0,0.00021917,3]
[345570129,1734358241873,-500.0,0.00021917,3]
[345570130,1734358241883,-500.0,0.00021917,3]
[345570131,1734358241892,-500.0,0.00021917,3]
[345570132,1734358241901,-500.0,0.00021917,3]
[345570133,1734358241910,-500.0,0.00021917,3]
[345570134,1734358241920,-500.0,0.00021917,3]
[345570135,1734358241929,-500.0,0.00021917,3]
[345570136,1734358241939,-500.0,0.00021917,3]
[345570137,1734358241948,-500.0,0.00021917,3]
[345570138,1734358241958,-500.0,0.00021917,3]
[345570139,1734358241967,-500.0,0.00021917,3]
[345570140,1734358241976,-500.0,0.00021917,3]
[345570141,1734358241987,-500.0,0.00021917,3]
[345570142,1734358241996,-500.0,0.00021917,3]
[345570143,1734358242006,-500.0,0.00021917,3]
[345570144,1734358242015,-500.0,0.00021917,3]
[345570145,1734358242024,-500.0,0.00021917,3]
[345570146,1734358242033,-500.0,0.00021917,3]
[345570147,1734358242043,-500.0,0.00021917,3]
[345570148,1734358242052,-500.0,0.00021917,3]
[345570149,1734358242061,-500.0,0.00021917,3]
[345570150,1734358242070,-500.0,0.00021917,3]
[345570151,1734358242079,-500.0,0.00021917,3]
[345570152,1734358242089,-500.0,0.00021917,3]
[345570153,1734358242098,-500.0,0.00021917,3]
[345570154,1734358242107,-500.0,0.00021917,3]
[345570155,1734358242116,-500.0,0.00021917,3]
[345570156,1734358242125,-500.0,0.00021917,3]
[345570157,1734358242134,-500.0,0.00021917,3]
[345570158,1734358242144,-500.0,0.00021917,3]
[345570159,1734358242153,-500.0,0.00021917,3]
[345570160,1734358242162,-314.53,0.00021917,3]
[345570161,1734358242172,-500.0,0.00021917,3]
[345570162,1734358242181,-293.9,0.00021917,3]
[345570163,1734358242190,-500.0,0.00021917,3]
[345570164,1734358242199,-500.0,0.00021917,3]
[345570165,1734358242208,-500.0,0.00021917,3]
[345570166,1734358242217,-500.0,0.00021917,3]
[345570167,1734358242226,-500.0,0.00021917,3]
[345570168,1734358242237,-500.0,0.00021917,3]
[345570169,1734358242246,-468.44,0.00021917,3]
[345570170,1734358242255,-500.0,0.00021917,3]
[345570171,1734358242264,-618.83,0.00021917,3]
[345570172,1734358242273,-500.0,0.00021917,3]
[345570173,1734358242282,-500.0,0.00021917,3]
[345570174,1734358242291,-500.0,0.00021917,3]
[345570175,1734358242301,-500.0,0.00021917,3]
[345570176,1734358242310,-500.0,0.00021917,3]
[345570177,1734358242318,-582.48,0.00021917,3]
[345570178,1734358242327,-500.0,0.00021917,3]
[345570179,1734358242337,-500.0,0.00021917,3]
[345570180,1734358242346,-500.0,0.00021917,3]
[345570181,1734358242354,-500.0,0.00021917,3]
[345570182,1734358242364,-500.0,0.00021917,3]
[345570183,1734358242373,-500.0,0.00021917,3]
[345570184,1734358242383,-500.0,0.00021917,3]
[345570185,1734358242392,-500.0,0.00021917,3]
[345570186,1734358242401,-500.0,0.00021917,3]
[345570187,1734358242411,-500.0,0.00021917,3]
[345570188,1734358242420,-500.0,0.00021917,3]
[345570189,1734358242429,-500.0,0.00021917,3]
[345570190,1734358242438,-500.0,0.00021917,3]
[345570191,1734358242447,-500.0,0.00021917,3]
[345570192,1734358242456,-500.0,0.00021917,3]
[345570193,1734358242466,-500.0,0.00021917,3]
[345570194,1734358242475,-500.0,0.00021917,3]
[345570195,1734358242487,-500.0,0.00021917,3]
[345570196,1734358242498,-500.0,0.00021917,3]
[345570197,1734358242509,-500.0,0.00021917,3]
[345570198,1734358242522,-500.0,0.00021917,3]
[345570199,1734358242531,-500.0,0.00021917,3]
[345570200,1734358242540,-500.0,0.00021917,3]
[345570201,1734358242551,-500.0,0.00021917,3]
[345570202,1734358242560,-500.0,0.00021917,3]
[345570203,1734358242570,-500.0,0.00021917,3]
[345570205,1734358242580,-500.0,0.00021917,3]
[345570206,1734358242590,-500.0,0.00021917,3]
[345570207,1734358242599,-500.0,0.00021917,3]
[345570208,1734358242609,-500.0,0.00021917,3]
[345570209,1734358242618,-500.0,0.00021917,3]
[345570210,1734358242627,-613.94,0.00021917,3]
[345570211,1734358242636,-427.44,0.00021917,3]
[345570212,1734358242645,-500.0,0.00021917,3]
[345570213,1734358242655,-500.0,0.00021917,3]
[345570214,1734358242664,-500.0,0.00021917,3]
[345570215,1734358242674,-500.0,0.00021917,3]
[345570217,1734358242684,-500.0,0.00021917,3]
[345570219,1734358242694,-500.0,0.00021917,3]
[345570221,1734358242703,-500.0,0.00021917,3]
[345570223,1734358242712,-500.0,0.00021917,3]
[345570224,1734358242721,-500.0,0.00021917,3]
[345570226,1734358242729,-500.0,0.00021917,3]
[345570228,1734358242739,-500.0,0.00021917,3]
[345570230,1734358242749,-500.0,0.00021917,3]
[345570232,1734358242758,-500.0,0.00021917,3]
[345570234,1734358242767,-330.50527949,0.00021917,3]
[345570236,1734358242777,-500.0,0.00021917,3]
[345570238,1734358242787,-500.0,0.00021917,3]
[345570240,1734358242796,-577.71,0.00021917,3]
[345570242,1734358242805,-500.0,0.00021917,3]
[345570244,1734358242815,-500.0,0.00021917,3]
[345570246,1734358242824,-500.0,0.00021917,3]
[345570247,1734358242833,-500.0,0.00021917,3]
[345570248,1734358242843,-500.0,0.00021917,3]
[345570249,1734358242852,-500.0,0.00021917,3]
[345570250,1734358242863,-500.0,0.00021917,3]
[345570251,1734358242873,-640.52,0.00021917,3]
[345570252,1734358242882,-500.0,0.00021917,3]
[345570253,1734358242891,-500.0,0.00021917,3]
[345570254,1734358242900,-500.0,0.00021917,3]
[345570255,1734358242909,-500.0,0.00021917,3]
[345570256,1734358242919,-515.04,0.00021917,3]
[345570257,1734358242927,-515.04,0.00021917,3]
[345570258,1734358242936,-241.25152209,0.00021917,3]
[345570259,1734358242946,-500.0,0.00021917,3]
[345570260,1734358242955,-500.0,0.00021917,3]
[345570261,1734358242965,-500.0,0.00021917,3]
[345570262,1734358242974,-502.7236223,0.00021917,3]
[345570263,1734358242984,-500.0,0.00021917,3]
[345570264,1734358242994,-506.27366278,0.00021917,3]
[345570265,1734358243003,-500.0,0.00021917,3]
[345570266,1734358243013,-500.0,0.00021917,3]
[345570267,1734358243022,-500.0,0.00021917,3]
[345570268,1734358243031,-500.0,0.00021917,3]
[345570269,1734358243041,-358.88187769,0.00021917,3]
[345570270,1734358243051,-500.0,0.00021917,3]
[345570271,1734358243060,-239.58,0.00021917,3]
[345570272,1734358243070,-500.0,0.00021917,3]
[345570273,1734358243079,-500.0,0.00021917,3]
[345570274,1734358243088,-500.0,0.00021917,3]
[345570275,1734358243098,-500.0,0.00021917,3]
[345570276,1734358243107,-634.0,0.00021917,3]
[345570277,1734358243117,-500.0,0.00021917,3]
[345570278,1734358243126,-348.23,0.00021917,3]
[345570279,1734358243135,-500.0,0.00021917,3]
[345570280,1734358243144,-500.0,0.00021917,3]
[345570281,1734358243153,-500.0,0.00021917,3]
[345570282,1734358243162,-500.0,0.00021917,3]
[345570283,1734358243171,-500.0,0.00021917,3]
[345570284,1734358243180,-500.0,0.00021917,3]
[345570286,1734358243189,-500.0,0.00021917,3]
[345570288,1734358243198,-500.0,0.00021917,3]
[345570289,1734358243207,-500.0,0.00021917,3]
[345570292,1734358243217,-500.0,0.00021917,3]
[345570293,1734358243226,-500.0,0.00021917,3]
[345570295,1734358243237,-500.0,0.00021917,3]
[345570298,1734358243246,-2000.0,0.00021951,2]
[345570299,1734358243256,-250.0,0.00021951,2]
[345570301,1734358243266,-1307.39075563,0.00021953,2]
[345570303,1734358243275,-500.46440031,0.00021973,2]
[345570305,1734358243285,-500.0,0.00021997,13]
[345570308,1734358243296,-500.0,0.00021997,13]
[345570310,1734358243306,-487.0,0.00021997,13]
[345570312,1734358243316,-55150.0,0.00022,2]
[345570313,1734358243326,-1447.91693135,0.00022123,2]
[345570315,1734358243336,-166.98,0.00022159,2]
[345570317,1734358243345,-500.0,0.0002226,2]
[345570320,1734358243355,-49482.0,0.00022317,2]
[345570321,1734358243365,-500.0,0.00022393,3]
[345570323,1734358243374,-500.0,0.00022393,3]
[345570325,1734358243383,-500.0,0.00022393,3]
[345570327,1734358243393,-500.0,0.00022393,3]
[345570329,1734358243403,-500.0,0.00022393,3]
[345570332,1734358243412,-500.0,0.00022393,3]
[345570334,1734358243422,-500.0,0.00022393,3]
[345570335,1734358243431,-500.0,0.00022393,3]
[345570337,1734358243440,-286.06,0.00022393,3]
[345570339,1734358243449,-500.0,0.00022393,3]
[345570341,1734358243459,-500.0,0.00022393,3]
[345570343,1734358243468,-500.0,0.00022393,3]
[345570345,1734358243478,-500.0,0.00022393,3]
[345570347,1734358243488,-1241.0,0.00022393,2]
[345570349,1734358243497,-250.0,0.0002244,2]
[345570351,1734358243510,-1307.39075563,0.00022444,2]
[345570353,1734358243519,-400.0,0.0002247,2]
[345570355,1734358243529,-400.0,0.0002247,2]
[345570357,1734358243538,-400.0,0.0002247,2]
[345570359,1734358243552,-150.0,0.00022488,4]
[345570361,1734358243561,-150.0,0.00022488,4]
[345570363,1734358243572,-150.0,0.00022488,4]
[345570365,1734358243582,-150.79244376,0.00022488,4]
[345570367,1734358243591,-150.0,0.00022488,4]
[345570369,1734358243601,-218.91,0.00022499,2]
[345570371,1734358243610,-1253.04,0.000225,2]
[345570373,1734358243619,-1447.91693135,0.00022586,2]
[345570375,1734358243628,-150.0,0.00022596,4]
[345570377,1734358243637,-1241.0,0.00022624,2]
[345570379,1734358243647,-150.0,0.00022644,4]
[345570381,1734358243656,-150.0,0.00022705,4]
[345570383,1734358243665,-2000.0,0.00022763,2]
[345570385,1734358243675,-163.68,0.00022798,2]
[345570387,1734358243685,-150.0,0.000228,4]
[345570389,1734358243694,-150.0,0.00022814,4]
[345570391,1734358243703,-154.29,0.00022822,2]
[345570393,1734358243713,-150.0,0.00022845,4]
[345570395,1734358243722,-1241.0,0.00022855,2]
[345570397,1734358243733,-349.87,0.000229,31]
[345570399,1734358243742,-349.87,0.000229,31]
[345570401,1734358243752,-349.87,0.000229,31]
[345570403,1734358243761,-349.87,0.000229,31]
[345570405,1734358243771,-349.87,0.000229,31]
[345570407,1734358243780,-349.87,0.000229,31]
[345570409,1734358243790,-349.87,0.000229,31]
[345570411,1734358243799,-349.87,0.000229,31]
[345570413,1734358243808,-349.87,0.000229,31]
[345570415,1734358243817,-349.87,0.000229,31]
[345570417,1734358243827,-349.87,0.000229,31]
[345570419,1734358243836,-349.87,0.000229,31]
[345570421,1734358243844,-349.87,0.000229,31]
[345570423,1734358243853,-349.87,0.000229,31]
[345570425,1734358243863,-349.87,0.000229,31]
[345570427,1734358243873,-349.87,0.000229,31]
[345570429,1734358243882,-150.0,0.00022922,4]
[345570431,1734358243891,-1307.39075563,0.00022936,2]
[345570433,1734358243900,-150.0,0.00022956,4]
[345570435,1734358243909,-400.0,0.0002297,2]
[345570437,1734358243918,-500.0,0.00022999,3]
[345570439,1734358243927,-500.0,0.00022999,3]
[345570441,1734358243936,-500.0,0.00022999,3]
[345570443,1734358243945,-500.0,0.00022999,3]
[345570445,1734358243954,-500.0,0.00022999,3]
[345570446,1734358243964,-500.0,0.00022999,3]
[345570447,1734358243973,-298.76,0.00022999,3]
[345570448,1734358243985,-500.0,0.00022999,3]
[345570449,1734358243994,-500.0,0.00022999,3]
[345570450,1734358244003,-589.2,0.00022999,3]
[345570451,1734358244012,-500.0,0.00022999,3]
[345570452,1734358244021,-500.0,0.00022999,3]
[345570453,1734358244030,-500.0,0.00022999,3]
[345570455,1734358244039,-268.0,0.00022999,3]
[345570457,1734358244048,-500.0,0.00022999,3]
[345570459,1734358244057,-55150.0,0.00023,2]
[345570461,1734358244067,-2000.0,0.00023,120]
[345570463,1734358244078,-150.0,0.00023031,4]
[345570465,1734358244087,-1447.91693135,0.00023048,2]
[345570467,1734358244096,-1241.0,0.00023086,2]
[345570469,1734358244105,-575.85635686,0.00023086,2]
[345570471,1734358244115,-150.0,0.00023112,4]
[345570472,1734358244125,-150.0,0.00023139,4]
[345570474,1734358244133,-150.0,0.00023202,4]
[345570476,1734358244142,-150.0,0.00023248,4]
[345570478,1734358244151,-150.0,0.00023268,4]
[345570480,1734358244160,-1241.0,0.00023317,2]
[345570482,1734358244170,-500.0,0.00023356,2]
[345570484,1734358244179,-150.0,0.00023357,4]
[345570486,1734358244189,-150.0,0.00023425,4]
[345570488,1734358244198,-1307.39075563,0.00023427,2]
[345570490,1734358244207,-165.68,0.00023429,2]
[345570492,1734358244216,-150.0,0.00023465,4]
[345570494,1734358244226,-230.0,0.000235,2]
[345570496,1734358244239,-1447.91693135,0.00023511,2]
[345570498,1734358244248,-1241.0,0.00023548,2]
[345570500,1734358244258,-1060.95,0.00023549,2]
[345570502,1734358244268,-150.0,0.00023549,2]
[345570504,1734358244277,-150.0,0.00023559,4]
[345570506,1734358244287,-150.0,0.00023574,4]
[345570508,1734358244297,-2000.0,0.00023576,2]
[345570510,1734358244306,-150.0,0.00023581,4]
[345570512,1734358244316,-682.97,0.00023603,2]
[345570514,1734358244326,-500.0,0.00023644,2]
[345570516,1734358244335,-150.0,0.00023683,4]
[345570518,1734358244345,-150.0,0.00023737,4]
[345570520,1734358244357,-613.02,0.0002375,2]
[345570522,1734358244373,-1241.0,0.00023779,2]
[345570524,1734358244382,-150.0,0.00023791,4]
[345570526,1734358244391,-150.0,0.00023893,4]
[345570528,1734358244401,-150.0,0.000239,4]
[345570530,1734358244410,-150.0,0.00023915,4]
[345570532,1734358244419,-1307.39075563,0.00023918,2]
[345570534,1734358244429,-412.06573226,0.00023939,2]
[345570536,1734358244438,-3079.362,0.00023974,5]
[345570538,1734358244447,-162.331,0.00023974,5]
[345570540,1734358244457,-1447.91693135,0.00023974,2]
[345570542,1734358244466,-55149.25,0.00024,2]
[345570544,1734358244475,-11216.19,0.00024,2]
[345570546,1734358244486,-150.0,0.00024009,4]
[345570548,1734358244495,-500.0,0.00024047,3]
[345570549,1734358244505,-423.12,0.00024047,3]
[345570551,1734358244518,-534.8,0.00024047,3]
[345570553,1734358244527,-500.0,0.00024047,3]
[345570555,1734358244536,-500.0,0.00024047,3]
[345570557,1734358244545,-500.0,0.00024047,3]
[345570559,1734358244555,-500.0,0.00024047,3]
[345570561,1734358244564,-500.0,0.00024047,3]
[345570563,1734358244573,-500.0,0.00024047,3]
[345570565,1734358244583,-500.0,0.00024047,3]
[345570567,1734358244592,-500.0,0.00024047,3]
[345570569,1734358244601,-500.0,0.00024047,3]
[345570571,1734358244611,-500.0,0.00024047,3]
[345570573,1734358244620,-500.0,0.00024047,3]
[345570575,1734358244629,-500.0,0.00024047,3]
[345570577,1734358244638,-500.0,0.00024047,3]
[345570579,1734358244647,-515.04,0.00024047,3]
[345570581,1734358244656,-500.0,0.00024047,3]
[345570583,1734358244666,-150.0,0.00024049,4]
[345570585,1734358244675,-200.0,0.000241,2]
[345570587,1734358244684,-150.0,0.00024117,4]
[345570589,1734358244693,-150.0,0.00024205,4]
[345570591,1734358244702,-150.0,0.00024226,4]
[345570593,1734358244711,-150.0,0.00024272,4]
[345570594,1734358244720,-262.34,0.0002433,2]
[345570595,1734358244730,-412.06573226,0.00024333,2]
[345570596,1734358244741,-150.0,0.00024334,4]
[345570597,1734358244750,-150.0,0.00024362,4]
[345570598,1734358244759,-788.0,0.00024376,2]
[345570599,1734358244768,-200.0,0.00024377,2]
[345570600,1734358244777,-2000.0,0.00024388,2]
[345570601,1734358244786,-3000.0,0.000244,2]
[345570602,1734358244795,-18996.202,0.00024401,2]
[345570603,1734358244804,-1307.39075563,0.00024409,2]
[345570604,1734358244813,-3960.93,0.00024411,2]
[345570605,1734358244823,-1447.91693135,0.00024437,2]
[345570606,1734358244832,-2000.0,0.00024442,120]
[345570607,1734358244841,-150.0,0.00024443,4]
[345570608,1734358244851,-153.0,0.000245,2]
[345570609,1734358244860,-153.0,0.000245,2]
[345570610,1734358244869,-153.0,0.000245,2]
[345570611,1734358244878,-153.0,0.000245,2]
[345570612,1734358244888,-153.0,0.000245,2]
[345570613,1734358244896,-153.0,0.000245,2]
[345570614,1734358244905,-153.0,0.000245,2]
[345570615,1734358244914,-153.0,0.000245,2]
[345570616,1734358244924,-1026.54052922,0.000245,2]
[345570617,1734358244933,-1066.57807948,0.000245,2]
[345570618,1734358244942,-153.0,0.000245,2]
[345570619,1734358244951,-153.0,0.000245,2]
[345570620,1734358244960,-153.0,0.000245,2]
[345570621,1734358244969,-153.0,0.000245,2]
[345570622,1734358244978,-153.0,0.000245,2]
[345570623,1734358244988,-153.0,0.000245,2]
[345570624,1734358244997,-153.0,0.000245,2]
[345570625,1734358245007,-153.0,0.000245,2]
[345570626,1734358245016,-500.0,0.00024501,3]
[345570627,1734358245026,-500.0,0.00024501,3]
[345570628,1734358245035,-500.0,0.00024501,3]
[345570629,1734358245045,-500.0,0.00024501,3]
[345570630,1734358245054,-500.0,0.00024501,3]
[345570631,1734358245063,-500.0,0.00024501,3]
[345570632,1734358245072,-500.0,0.00024501,3]
[345570633,1734358245081,-500.0,0.00024501,3]
[345570634,1734358245091,-500.0,0.00024501,3]
[345570635,1734358245100,-500.0,0.00024501,3]
[345570636,1734358245110,-412.06573226,0.00024505,2]
[345570637,1734358245243,-150.0,0.00024518,4]
[345570638,1734358245254,-150.0,0.00024519,2]
[345570639,1734358245264,-150.0,0.00024552,4]
[345570640,1734358245273,-150.0,0.00024584,2]
[345570641,1734358245282,-267.65,0.00024622,2]
[345570642,1734358245292,-267.65,0.00024622,2]
[345570643,1734358245301,-267.65,0.00024622,2]
[345570644,1734358245310,-267.65,0.00024622,2]
[345570645,1734358245320,-267.65,0.00024622,2]
[345570646,1734358245329,-500.0,0.00024623,3]
[345570647,1734358245338,-500.0,0.00024623,3]
[345570648,1734358245348,-500.0,0.00024623,3]
[345570649,1734358245358,-500.0,0.00024623,3]
[345570650,1734358245367,-535.66087314,0.00024623,3]
[345570651,1734358245377,-569.45965531,0.00024623,3]
[345570652,1734358245386,-500.0,0.00024623,3]
[345570653,1734358245395,-345.84460818,0.00024623,3]
[345570654,1734358245406,-500.0,0.00024623,3]
[345570655,1734358245415,-500.0,0.00024623,3]
[345570656,1734358245425,-505.30504919,0.00024623,3]
[345570657,1734358245434,-500.0,0.00024623,3]
[345570658,1734358245443,-500.0,0.00024623,3]
[345570659,1734358245452,-170.67,0.00024623,3]
[345570660,1734358245462,-209.42,0.00024623,3]
[345570661,1734358245471,-500.0,0.00024623,3]
[345570662,1734358245480,-409.29,0.00024623,3]
[345570663,1734358245491,-500.0,0.00024623,3]
[345570664,1734358245500,-500.0,0.00024623,3]
[345570665,1734358245510,-500.0,0.00024623,3]
[345570666,1734358245521,-434.08,0.00024623,3]
[345570667,1734358245531,-500.0,0.00024623,3]
[345570668,1734358245541,-285.98588721,0.00024623,3]
[345570669,1734358245550,-500.0,0.00024623,3]
[345570670,1734358245561,-500.0,0.00024623,3]
[345570671,1734358245571,-500.0,0.00024623,3]
[345570672,1734358245581,-500.0,0.00024623,3]
[345570673,1734358245591,-500.0,0.00024623,3]
[345570674,1734358245602,-500.0,0.00024623,3]
[345570675,1734358245611,-500.0,0.00024623,3]
[345570676,1734358245620,-500.0,0.00024623,3]
[345570677,1734358245630,-500.0,0.00024623,3]
[345570678,1734358245639,-500.0,0.00024623,3]
[345570679,1734358245650,-500.0,0.00024623,3]
[345570680,1734358245659,-500.0,0.00024623,3]
[345570681,1734358245669,-500.0,0.00024623,3]
[345570682,1734358245678,-500.0,0.00024623,3]
[345570683,1734358245687,-500.0,0.00024623,3]
[345570684,1734358245696,-500.0,0.00024623,3]
[345570685,1734358245705,-500.0,0.00024623,3]
[345570686,1734358245714,-352.05,0.00024623,3]
[345570687,1734358245723,-760.28,0.00024623,3]
[345570688,1734358245732,-500.0,0.00024623,3]
[345570689,1734358245742,-506.57844661,0.00024623,3]
[345570690,1734358245751,-164.45902278,0.00024623,3]
[345570691,1734358245760,-500.0,0.00024623,3]
[345570692,1734358245769,-649.74,0.00024623,3]
[345570693,1734358245779,-500.0,0.00024623,3]
[345570694,1734358245788,-500.0,0.00024623,3]
[345570695,1734358245796,-500.0,0.00024623,3]
[345570696,1734358245805,-500.0,0.00024623,3]
[345570697,1734358245814,-500.0,0.00024623,3]
[345570698,1734358245823,-941.73,0.00024623,3]
[345570699,1734358245832,-500.0,0.00024623,3]
[345570700,1734358245842,-500.0,0.00024623,3]
[345570701,1734358245853,-500.0,0.00024623,3]
[345570702,1734358245862,-500.0,0.00024623,3]